fUSD/lending_fUSD_20260523
["ID","MTS","AMOUNT","RATE_DAILY","PERIOD"]
[422860298,1779537040000,-3100.0,7.9e-05,2]
[422860296,1779537040000,-215.31523495,7.857e-05,2]
[422860297,1779537040000,-503.81,7.899e-05,2]
[422860300,1779537040000,-250.0,7.988e-05,2]
[422860295,1779537040000,-2000.0,7.8e-05,2]
[422860301,1779537040000,-4100.0,8e-05,2]
[422860299,1779537040000,-208.78535381,7.966e-05,2]
[422860302,1779537040000,-990.0,8.219e-05,2]
[422860357,1779537041000,-500.0,8.219e-05,2]
[422860361,1779537041000,-500.0,8.219e-05,2]
[422860353,1779537041000,-522.0,8.219e-05,2]
[422860355,1779537041000,-500.0,8.219e-05,2]
[422860359,1779537041000,-522.0,8.219e-05,2]
[422860347,1779537041000,-500.0,8.219e-05,2]
[422860351,1779537041000,-500.0,8.219e-05,2]
[422860363,1779537041000,-500.0,8.219e-05,2]
[422860341,1779537041000,-500.0,8.219e-05,2]
[422860345,1779537041000,-522.0,8.219e-05,2]
[422860343,1779537041000,-500.0,8.219e-05,2]
[422860349,1779537041000,-500.0,8.219e-05,2]
[422860366,1779537041000,-500.0,8.219e-05,2]
[422860370,1779537041000,-500.0,8.219e-05,2]
[422860368,1779537041000,-500.0,8.219e-05,2]
[422860374,1779537041000,-500.0,8.219e-05,2]
[422860384,1779537041000,-500.0,8.219e-05,2]
[422860376,1779537041000,-500.0,8.219e-05,2]
[422860388,1779537041000,-500.0,8.219e-05,2]
[422860386,1779537041000,-500.0,8.219e-05,2]
[422860378,1779537041000,-500.0,8.219e-05,2]
[422860396,1779537041000,-500.0,8.219e-05,2]
[422860380,1779537041000,-500.0,8.219e-05,2]
[422860382,1779537041000,-500.0,8.219e-05,2]
[422860394,1779537041000,-500.0,8.219e-05,2]
[422860339,1779537041000,-522.0,8.219e-05,2]
[422860372,1779537041000,-500.0,8.219e-05,2]
[422860336,1779537041000,-500.0,8.219e-05,2]
[422860305,1779537041000,-990.0,8.219e-05,2]
[422860334,1779537041000,-500.0,8.219e-05,2]
[422860398,1779537041000,-505.7497438,8.219e-05,2]
[422860303,1779537041000,-990.0,8.219e-05,2]
[422860304,1779537041000,-990.0,8.219e-05,2]
[422860308,1779537041000,-990.0,8.219e-05,2]
[422860307,1779537041000,-990.0,8.219e-05,2]
[422860309,1779537041000,-990.0,8.219e-05,2]
[422860311,1779537041000,-990.0,8.219e-05,2]
[422860310,1779537041000,-990.0,8.219e-05,2]
[422860313,1779537041000,-990.0,8.219e-05,2]
[422860312,1779537041000,-990.0,8.219e-05,2]
[422860315,1779537041000,-990.0,8.219e-05,2]
[422860320,1779537041000,-990.0,8.219e-05,2]
[422860330,1779537041000,-500.0,8.219e-05,2]
[422860317,1779537041000,-990.0,8.219e-05,2]
[422860314,1779537041000,-990.0,8.219e-05,2]
[422860318,1779537041000,-990.0,8.219e-05,2]
[422860322,1779537041000,-990.0,8.219e-05,2]
[422860321,1779537041000,-990.0,8.219e-05,2]
[422860324,1779537041000,-990.0,8.219e-05,2]
[422860323,1779537041000,-990.0,8.219e-05,2]
[422860325,1779537041000,-990.0,8.219e-05,2]
[422860327,1779537041000,-500.0,8.219e-05,2]
[422860326,1779537041000,-1005.81778893,8.219e-05,2]
[422860328,1779537041000,-500.0,8.219e-05,2]
[422860329,1779537041000,-500.0,8.219e-05,2]
[422860332,1779537041000,-500.0,8.219e-05,2]
[422860316,1779537041000,-990.0,8.219e-05,2]
[422860390,1779537041000,-226.18441098,8.219e-05,2]
[422860319,1779537041000,-990.0,8.219e-05,2]
[422860407,1779537041000,-500.0,8.219e-05,2]
[422860437,1779537041000,-566.44136017,8.219e-05,2]
[422860438,1779537041000,-1494.0,8.219e-05,2]
[422860439,1779537041000,-1494.0,8.219e-05,2]
[422860441,1779537041000,-1494.0,8.219e-05,2]
[422860440,1779537041000,-1494.0,8.219e-05,2]
[422860442,1779537041000,-1494.0,8.219e-05,2]
[422860445,1779537041000,-522.0,8.219e-05,2]
[422860443,1779537041000,-522.0,8.219e-05,2]
[422860448,1779537041000,-522.0,8.219e-05,2]
[422860447,1779537041000,-522.0,8.219e-05,2]
[422860444,1779537041000,-522.0,8.219e-05,2]
[422860449,1779537041000,-522.0,8.219e-05,2]
[422860435,1779537041000,-500.0,8.219e-05,2]
[422860446,1779537041000,-1494.0,8.219e-05,2]
[422860462,1779537041000,-1494.0,8.219e-05,2]
[422860453,1779537041000,-522.0,8.219e-05,2]
[422860451,1779537041000,-522.0,8.219e-05,2]
[422860452,1779537041000,-522.0,8.219e-05,2]
[422860454,1779537041000,-1494.0,8.219e-05,2]
[422860455,1779537041000,-522.0,8.219e-05,2]
[422860456,1779537041000,-522.0,8.219e-05,2]
[422860459,1779537041000,-1494.0,8.219e-05,2]
[422860457,1779537041000,-522.0,8.219e-05,2]
[422860460,1779537041000,-522.0,8.219e-05,2]
[422860458,1779537041000,-522.0,8.219e-05,2]
[422860392,1779537041000,-500.0,8.219e-05,2]
[422860450,1779537041000,-522.0,8.219e-05,2]
[422860436,1779537041000,-1494.0,8.219e-05,2]
[422860461,1779537041000,-522.0,8.219e-05,2]
[422860434,1779537041000,-1494.0,8.219e-05,2]
[422860409,1779537041000,-500.0,8.219e-05,2]
[422860412,1779537041000,-1494.0,8.219e-05,2]
[422860411,1779537041000,-500.0,8.219e-05,2]
[422860410,1779537041000,-500.0,8.219e-05,2]
[422860401,1779537041000,-500.0,8.219e-05,2]
[422860403,1779537041000,-161.14601318,8.219e-05,2]
[422860405,1779537041000,-500.0,8.219e-05,2]
[422860433,1779537041000,-1494.0,8.219e-05,2]
[422860417,1779537041000,-500.0,8.219e-05,2]
[422860415,1779537041000,-1494.0,8.219e-05,2]
[422860414,1779537041000,-500.0,8.219e-05,2]
[422860416,1779537041000,-1494.0,8.219e-05,2]
[422860418,1779537041000,-1494.0,8.219e-05,2]
[422860413,1779537041000,-500.0,8.219e-05,2]
[422860421,1779537041000,-500.0,8.219e-05,2]
[422860432,1779537041000,-1494.0,8.219e-05,2]
[422860420,1779537041000,-1494.0,8.219e-05,2]
[422860428,1779537041000,-1494.0,8.219e-05,2]
[422860430,1779537041000,-1494.0,8.219e-05,2]
[422860426,1779537041000,-1494.0,8.219e-05,2]
[422860429,1779537041000,-500.0,8.219e-05,2]
[422860431,1779537041000,-354.49313884,8.219e-05,2]
[422860425,1779537041000,-500.0,8.219e-05,2]
[422860424,1779537041000,-1494.0,8.219e-05,2]
[422860422,1779537041000,-1494.0,8.219e-05,2]
[422860419,1779537041000,-500.0,8.219e-05,2]
[422860423,1779537041000,-500.0,8.219e-05,2]
[422860427,1779537041000,-500.0,8.219e-05,2]
[422860498,1779537042000,-500.0,8.219e-05,2]
[422860500,1779537042000,-569.87645658,8.219e-05,2]
[422860502,1779537042000,-500.0,8.219e-05,2]
[422860505,1779537042000,-417.28066252,8.219e-05,2]
[422860503,1779537042000,-500.0,8.219e-05,2]
[422860493,1779537042000,-500.0,8.219e-05,2]
[422860497,1779537042000,-500.0,8.219e-05,2]
[422860495,1779537042000,-500.0,8.219e-05,2]
[422860494,1779537042000,-500.0,8.219e-05,2]
[422860496,1779537042000,-262.52138871,8.219e-05,2]
[422860499,1779537042000,-500.0,8.219e-05,2]
[422860504,1779537042000,-500.0,8.219e-05,2]
[422860516,1779537042000,-500.0,8.219e-05,2]
[422860501,1779537042000,-500.0,8.219e-05,2]
[422860508,1779537042000,-500.0,8.219e-05,2]
[422860509,1779537042000,-500.0,8.219e-05,2]
[422860507,1779537042000,-150.0,8.219e-05,2]
[422860510,1779537042000,-500.0,8.219e-05,2]
[422860511,1779537042000,-500.0,8.219e-05,2]
[422860512,1779537042000,-500.0,8.219e-05,2]
[422860514,1779537042000,-500.0,8.219e-05,2]
[422860519,1779537042000,-500.0,8.219e-05,2]
[422860515,1779537042000,-500.0,8.219e-05,2]
[422860517,1779537042000,-496.77049006,8.219e-05,2]
[422860490,1779537042000,-170.9314917,8.219e-05,2]
[422860506,1779537042000,-292.52430018,8.219e-05,2]
[422860485,1779537042000,-500.0,8.219e-05,2]
[422860477,1779537042000,-246.10932154,8.219e-05,2]
[422860491,1779537042000,-500.0,8.219e-05,2]
[422860513,1779537042000,-500.0,8.219e-05,2]
[422860464,1779537042000,-522.0,8.219e-05,2]
[422860463,1779537042000,-522.0,8.219e-05,2]
[422860465,1779537042000,-1513.81162537,8.219e-05,2]
[422860466,1779537042000,-522.0,8.219e-05,2]
[422860468,1779537042000,-500.0,8.219e-05,2]
[422860467,1779537042000,-531.00866086,8.219e-05,2]
[422860470,1779537042000,-500.0,8.219e-05,2]
[422860469,1779537042000,-500.0,8.219e-05,2]
[422860471,1779537042000,-150.0,8.219e-05,2]
[422860473,1779537042000,-500.0,8.219e-05,2]
[422860478,1779537042000,-500.0,8.219e-05,2]
[422860492,1779537042000,-500.0,8.219e-05,2]
[422860472,1779537042000,-500.0,8.219e-05,2]
[422860475,1779537042000,-500.0,8.219e-05,2]
[422860476,1779537042000,-500.0,8.219e-05,2]
[422860479,1779537042000,-500.0,8.219e-05,2]
[422860481,1779537042000,-500.0,8.219e-05,2]
[422860482,1779537042000,-500.0,8.219e-05,2]
[422860480,1779537042000,-500.0,8.219e-05,2]
[422860483,1779537042000,-500.0,8.219e-05,2]
[422860489,1779537042000,-500.0,8.219e-05,2]
[422860487,1779537042000,-500.0,8.219e-05,2]
[422860484,1779537042000,-500.0,8.219e-05,2]
[422860486,1779537042000,-500.0,8.219e-05,2]
[422860488,1779537042000,-500.0,8.219e-05,2]
[422860474,1779537042000,-150.0,8.219e-05,2]
[422860520,1779537042000,-500.0,8.219e-05,2]
[422860518,1779537042000,-500.0,8.219e-05,2]
[422860564,1779537042000,-615.0,8.219e-05,2]
[422860552,1779537042000,-332.66890927,8.219e-05,2]
[422860553,1779537042000,-615.0,8.219e-05,2]
[422860554,1779537042000,-503.93157258,8.219e-05,2]
[422860556,1779537042000,-615.0,8.219e-05,2]
[422860555,1779537042000,-642.0,8.219e-05,2]
[422860558,1779537042000,-615.0,8.219e-05,2]
[422860560,1779537042000,-615.0,8.219e-05,2]
[422860559,1779537042000,-642.0,8.219e-05,2]
[422860563,1779537042000,-615.0,8.219e-05,2]
[422860561,1779537042000,-642.0,8.219e-05,2]
[422860562,1779537042000,-642.0,8.219e-05,2]
[422860565,1779537042000,-642.0,8.219e-05,2]
[422860551,1779537042000,-642.0,8.219e-05,2]
[422860567,1779537042000,-642.0,8.219e-05,2]
[422860568,1779537042000,-615.0,8.219e-05,2]
[422860569,1779537042000,-642.0,8.219e-05,2]
[422860571,1779537042000,-642.0,8.219e-05,2]
[422860575,1779537042000,-642.0,8.219e-05,2]
[422860570,1779537042000,-615.0,8.219e-05,2]
[422860574,1779537042000,-615.0,8.219e-05,2]
[422860573,1779537042000,-642.0,8.219e-05,2]
[422860572,1779537042000,-615.0,8.219e-05,2]
[422860577,1779537042000,-642.0,8.219e-05,2]
[422860576,1779537042000,-615.0,8.219e-05,2]
[422860522,1779537042000,-500.0,8.219e-05,2]
[422860578,1779537042000,-615.0,8.219e-05,2]
[422860566,1779537042000,-615.0,8.219e-05,2]
[422860550,1779537042000,-500.0,8.219e-05,2]
[422860557,1779537042000,-642.0,8.219e-05,2]
[422860549,1779537042000,-500.0,8.219e-05,2]
[422860521,1779537042000,-414.72722824,8.219e-05,2]
[422860523,1779537042000,-500.0,8.219e-05,2]
[422860524,1779537042000,-500.0,8.219e-05,2]
[422860527,1779537042000,-500.0,8.219e-05,2]
[422860525,1779537042000,-500.0,8.219e-05,2]
[422860526,1779537042000,-500.0,8.219e-05,2]
[422860529,1779537042000,-198.39653009,8.219e-05,2]
[422860528,1779537042000,-500.0,8.219e-05,2]
[422860547,1779537042000,-500.0,8.219e-05,2]
[422860530,1779537042000,-500.0,8.219e-05,2]
[422860532,1779537042000,-500.0,8.219e-05,2]
[422860534,1779537042000,-500.0,8.219e-05,2]
[422860533,1779537042000,-500.0,8.219e-05,2]
[422860535,1779537042000,-500.0,8.219e-05,2]
[422860531,1779537042000,-500.0,8.219e-05,2]
[422860536,1779537042000,-615.0,8.219e-05,2]
[422860538,1779537042000,-500.0,8.219e-05,2]
[422860539,1779537042000,-615.0,8.219e-05,2]
[422860543,1779537042000,-500.0,8.219e-05,2]
[422860541,1779537042000,-500.0,8.219e-05,2]
[422860542,1779537042000,-615.0,8.219e-05,2]
[422860540,1779537042000,-500.0,8.219e-05,2]
[422860548,1779537042000,-642.0,8.219e-05,2]
[422860545,1779537042000,-500.0,8.219e-05,2]
[422860544,1779537042000,-642.0,8.219e-05,2]
[422860537,1779537042000,-500.0,8.219e-05,2]
[422860546,1779537042000,-615.0,8.219e-05,2]
[422860616,1779537043000,-853.0,8.219e-05,2]
[422860625,1779537043000,-853.0,8.219e-05,2]
[422860627,1779537043000,-853.0,8.219e-05,2]
[422860628,1779537043000,-853.0,8.219e-05,2]
[422860624,1779537043000,-853.0,8.219e-05,2]
[422860623,1779537043000,-853.0,8.219e-05,2]
[422860617,1779537043000,-853.0,8.219e-05,2]
[422860620,1779537043000,-853.0,8.219e-05,2]
[422860621,1779537043000,-853.0,8.219e-05,2]
[422860619,1779537043000,-853.0,8.219e-05,2]
[422860618,1779537043000,-853.0,8.219e-05,2]
[422860626,1779537043000,-853.0,8.219e-05,2]
[422860622,1779537043000,-853.0,8.219e-05,2]
[422860630,1779537043000,-500.0,8.219e-05,2]
[422860644,1779537043000,-2351.0,9.063e-05,2]
[422860631,1779537043000,-154.76,8.219e-05,2]
[422860632,1779537043000,-2000.0,8.219e-05,2]
[422860633,1779537043000,-1153.99,8.219e-05,2]
[422860635,1779537043000,-420.0,8.239e-05,2]
[422860634,1779537043000,-1680.0,8.239e-05,2]
[422860636,1779537043000,-255.0,8.291e-05,2]
[422860637,1779537043000,-166.65,8.46e-05,2]
[422860638,1779537043000,-150.0,8.493e-05,2]
[422860639,1779537043000,-500.0,8.493e-05,2]
[422860641,1779537043000,-500.0,8.767e-05,2]
[422860640,1779537043000,-154.76,8.733e-05,2]
[422860646,1779537043000,-154.76,9.247e-05,2]
[422860614,1779537043000,-853.0,8.219e-05,2]
[422860629,1779537043000,-865.11068258,8.219e-05,2]
[422860615,1779537043000,-167.79790195,8.219e-05,2]
[422860580,1779537043000,-642.0,8.219e-05,2]
[422860610,1779537043000,-261.54571794,8.219e-05,2]
[422860579,1779537043000,-642.0,8.219e-05,2]
[422860581,1779537043000,-615.0,8.219e-05,2]
[422860585,1779537043000,-615.0,8.219e-05,2]
[422860582,1779537043000,-642.0,8.219e-05,2]
[422860583,1779537043000,-615.0,8.219e-05,2]
[422860586,1779537043000,-642.0,8.219e-05,2]
[422860584,1779537043000,-642.0,8.219e-05,2]
[422860587,1779537043000,-615.0,8.219e-05,2]
[422860591,1779537043000,-615.0,8.219e-05,2]
[422860590,1779537043000,-642.0,8.219e-05,2]
[422860588,1779537043000,-642.0,8.219e-05,2]
[422860589,1779537043000,-615.0,8.219e-05,2]
[422860593,1779537043000,-617.41851285,8.219e-05,2]
[422860592,1779537043000,-642.0,8.219e-05,2]
[422860594,1779537043000,-660.07976925,8.219e-05,2]
[422860600,1779537043000,-500.0,8.219e-05,2]
[422860599,1779537043000,-853.0,8.219e-05,2]
[422860598,1779537043000,-853.0,8.219e-05,2]
[422860597,1779537043000,-853.0,8.219e-05,2]
[422860596,1779537043000,-853.0,8.219e-05,2]
[422860602,1779537043000,-853.0,8.219e-05,2]
[422860603,1779537043000,-500.0,8.219e-05,2]
[422860604,1779537043000,-853.0,8.219e-05,2]
[422860606,1779537043000,-853.0,8.219e-05,2]
[422860605,1779537043000,-500.0,8.219e-05,2]
[422860608,1779537043000,-853.0,8.219e-05,2]
[422860607,1779537043000,-500.0,8.219e-05,2]
[422860612,1779537043000,-853.0,8.219e-05,2]
[422860645,1779537043000,-433.0,9.12e-05,2]
[422860705,1779537043000,-150.0,0.00011544,2]
[422860643,1779537043000,-500.0,9.041e-05,2]
[422860680,1779537043000,-500.0,0.00010958,3]
[422860677,1779537043000,-3531.78124851,0.000109,2]
[422860682,1779537043000,-500.0,0.00010958,5]
[422860681,1779537043000,-500.0,0.00010958,4]
[422860684,1779537043000,-500.0,0.00010959,2]
[422860685,1779537043000,-150.0,0.00010959,2]
[422860683,1779537043000,-500.0,0.00010958,6]
[422860687,1779537043000,-4609.0,0.00010966,2]
[422860686,1779537043000,-150.0,0.00010959,2]
[422860689,1779537043000,-152.0,0.00011,3]
[422860688,1779537043000,-446.93,0.00010989,2]
[422860691,1779537043000,-4000.0,0.0001103,2]
[422860692,1779537043000,-897.0,0.00011034,2]
[422860678,1779537043000,-3531.78124851,0.000109,2]
[422860690,1779537043000,-246.83671021,0.00011,5]
[422860695,1779537043000,-1000.0,0.00011282,2]
[422860694,1779537043000,-275.74040284,0.00011233,2]
[422860696,1779537043000,-154.76,0.00011301,2]
[422860699,1779537043000,-200.0,0.00011396,2]
[422860697,1779537043000,-2000.0,0.00011301,2]
[422860715,1779537043000,-3531.78124851,0.00011757,2]
[422860713,1779537043000,-1672.75403578,0.0001164,2]
[422860701,1779537043000,-1153.99,0.00011507,2]
[422860707,1779537043000,-150.0,0.00011544,2]
[422860711,1779537043000,-270.84985147,0.00011544,2]
[422860709,1779537043000,-150.0,0.00011544,2]
[422860718,1779537043000,-154.76,0.00011815,2]
[422860642,1779537043000,-503.81,8.777e-05,2]
[422860693,1779537043000,-620.85690103,0.00011233,2]
[422860679,1779537043000,-500.0,0.00010958,2]
[422860716,1779537043000,-589.44,0.00011801,2]
[422860675,1779537043000,-3531.78124858,0.000109,2]
[422860647,1779537043000,-2000.0,9.247e-05,2]
[422860651,1779537043000,-503.81,9.654e-05,2]
[422860653,1779537043000,-27698.0,9.67e-05,2]
[422860654,1779537043000,-9999.99,9.67e-05,2]
[422860652,1779537043000,-14018.16,9.67e-05,2]
[422860649,1779537043000,-500.0,9.589e-05,2]
[422860648,1779537043000,-500.0,9.315e-05,2]
[422860676,1779537043000,-3531.78124851,0.000109,2]
[422860655,1779537043000,-2143.36137972,9.67e-05,2]
[422860656,1779537043000,-154.76,9.76e-05,2]
[422860657,1779537043000,-500.0,9.863e-05,2]
[422860659,1779537043000,-275.74040286,0.0001,2]
[422860658,1779537043000,-3292.0,9.969e-05,2]
[422860661,1779537043000,-580.14502158,0.0001,2]
[422860650,1779537043000,-250.0,9.595e-05,2]
[422860663,1779537043000,-736.0,0.00010032,2]
[422860665,1779537043000,-154.76,0.00010274,2]
[422860673,1779537043000,-154.76,0.00010788,2]
[422860674,1779537043000,-199.43891012,0.00010889,2]
[422860672,1779537043000,-4000.0,0.00010779,2]
[422860668,1779537043000,-500.0,0.00010411,2]
[422860669,1779537043000,-4000.0,0.00010529,2]
[422860670,1779537043000,-503.81,0.00010532,2]
[422860666,1779537043000,-2000.0,0.00010274,2]
[422860664,1779537043000,-500.0,0.00010137,2]
[422860660,1779537043000,-163.47,0.0001,2]
[422860667,1779537043000,-4000.0,0.00010278,2]
[422860662,1779537043000,-4000.0,0.00010027,2]
[422860671,1779537043000,-500.0,0.00010685,2]
[422860763,1779537044000,-1224.0,0.00013247,2]
[422860766,1779537044000,-3635.0,0.00013247,2]
[422860767,1779537044000,-9035.0,0.00013269,2]
[422860765,1779537044000,-418.0,0.00013247,2]
[422860761,1779537044000,-1271.0,0.00013247,2]
[422860754,1779537044000,-1000.0,0.00013082,2]
[422860757,1779537044000,-3546.0,0.00013247,2]
[422860755,1779537044000,-1700.0,0.00013082,2]
[422860756,1779537044000,-945.348,0.00013247,2]
[422860758,1779537044000,-1355.0,0.00013247,2]
[422860752,1779537044000,-3531.78124851,0.00012805,2]
[422860759,1779537044000,-150.0,0.00013247,2]
[422860768,1779537044000,-1672.75403578,0.0001327,2]
[422860783,1779537044000,-500.0,0.00013698,2]
[422860771,1779537044000,-705.07876991,0.000135,2]
[422860775,1779537044000,-5800.0,0.00013529,2]
[422860769,1779537044000,-589.44,0.00013373,2]
[422860772,1779537044000,-5800.0,0.00013503,2]
[422860774,1779537044000,-5800.0,0.0001352,2]
[422860773,1779537044000,-5800.0,0.00013512,2]
[422860777,1779537044000,-500.0,0.0001363,2]
[422860776,1779537044000,-5800.0,0.00013537,2]
[422860778,1779537044000,-500.0,0.0001363,2]
[422860780,1779537044000,-839.0,0.0001363,2]
[422860779,1779537044000,-500.0,0.0001363,2]
[422860781,1779537044000,-374.2529762,0.00013698,2]
[422860753,1779537044000,-262.092846,0.00012982,2]
[422860770,1779537044000,-2314.0,0.000134,2]
[422860751,1779537044000,-959.0,0.00012671,5]
[422860735,1779537044000,-621.98422306,0.00012256,2]
[422860748,1779537044000,-2000.0,0.00012329,2]
[422860722,1779537044000,-6453.0,0.00012063,2]
[422860723,1779537044000,-2143.3613797,0.00012235,2]
[422860720,1779537044000,-170.43895318,0.00011818,2]
[422860782,1779537044000,-500.0,0.00013698,2]
[422860729,1779537044000,-500.0,0.00012256,2]
[422860724,1779537044000,-206.64800166,0.00012256,2]
[422860731,1779537044000,-500.0,0.00012256,2]
[422860726,1779537044000,-500.0,0.00012256,2]
[422860725,1779537044000,-500.0,0.00012256,2]
[422860730,1779537044000,-500.0,0.00012256,2]
[422860728,1779537044000,-500.0,0.00012256,2]
[422860732,1779537044000,-500.0,0.00012256,2]
[422860733,1779537044000,-484.68457076,0.00012256,2]
[422860734,1779537044000,-500.0,0.00012256,2]
[422860737,1779537044000,-500.0,0.00012256,2]
[422860736,1779537044000,-500.0,0.00012256,2]
[422860738,1779537044000,-500.0,0.00012256,2]
[422860740,1779537044000,-500.0,0.00012256,2]
[422860741,1779537044000,-500.0,0.00012256,2]
[422860743,1779537044000,-500.0,0.00012256,2]
[422860745,1779537044000,-628.0,0.00012256,2]
[422860739,1779537044000,-500.0,0.00012256,2]
[422860744,1779537044000,-500.0,0.00012256,2]
[422860742,1779537044000,-500.0,0.00012256,2]
[422860746,1779537044000,-154.76,0.00012329,2]
[422860747,1779537044000,-172.45,0.00012329,2]
[422860750,1779537044000,-1204.0,0.00012671,5]
[422860749,1779537044000,-1672.75403578,0.00012455,2]
[422860784,1779537044000,-500.0,0.00013698,2]
[422860727,1779537044000,-500.0,0.00012256,2]
[422860785,1779537044000,-299.3113989,0.00013698,2]
[422860821,1779537044000,-3531.78124851,0.00013852,2]
[422860818,1779537044000,-315.0,0.000138,2]
[422860820,1779537044000,-166.66,0.00013836,2]
[422860823,1779537044000,-500.0,0.00013904,2]
[422860822,1779537044000,-500.0,0.00013904,2]
[422860824,1779537044000,-166.66,0.00013973,2]
[422860825,1779537044000,-11470.813,0.0001399,2]
[422860827,1779537044000,-1672.75403578,0.00014085,2]
[422860826,1779537044000,-250.0,0.00014,2]
[422860828,1779537044000,-2000.0,0.000141,2]
[422860829,1779537044000,-166.66,0.0001411,2]
[422860831,1779537044000,-166.66,0.00014247,2]
[422860832,1779537044000,-8835.893078,0.0001425,2]
[422860819,1779537044000,-308.0,0.000138,2]
[422860834,1779537044000,-166.66,0.00014384,2]
[422860835,1779537044000,-2000.0,0.000144,2]
[422860836,1779537044000,-200.0,0.00014404,2]
[422860838,1779537044000,-1000.0,0.00014452,2]
[422860837,1779537044000,-350.0,0.00014414,3]
[422860840,1779537044000,-350.0,0.00014461,2]
[422860841,1779537044000,-708.0,0.0001452,2]
[422860839,1779537044000,-1700.0,0.00014452,2]
[422860842,1779537044000,-350.0,0.00014589,2]
[422860843,1779537044000,-3383.0,0.00014596,2]
[422860844,1779537044000,-2000.0,0.00014599,7]
[422860846,1779537044000,-350.0,0.00014648,2]
[422860845,1779537044000,-5200.0,0.000146,5]
[422860787,1779537044000,-500.0,0.00013698,2]
[422860833,1779537044000,-2211.56216774,0.0001429,2]
[422860817,1779537044000,-1000.0,0.000138,2]
[422860830,1779537044000,-862.25,0.00014234,2]
[422860815,1779537044000,-166.66,0.00013699,2]
[422860816,1779537044000,-2000.0,0.00013699,7]
[422860789,1779537044000,-500.0,0.00013698,2]
[422860788,1779537044000,-500.0,0.00013698,2]
[422860791,1779537044000,-500.0,0.00013698,2]
[422860790,1779537044000,-500.0,0.00013698,2]
[422860793,1779537044000,-500.0,0.00013698,2]
[422860792,1779537044000,-500.0,0.00013698,2]
[422860796,1779537044000,-500.0,0.00013698,2]
[422860794,1779537044000,-500.0,0.00013698,2]
[422860795,1779537044000,-380.75749284,0.00013698,2]
[422860797,1779537044000,-592.0817962,0.00013698,2]
[422860799,1779537044000,-500.0,0.00013698,2]
[422860798,1779537044000,-500.0,0.00013698,2]
[422860800,1779537044000,-500.0,0.00013698,2]
[422860786,1779537044000,-555.06801264,0.00013698,2]
[422860802,1779537044000,-501.157632,0.00013698,2]
[422860801,1779537044000,-574.32140782,0.00013698,2]
[422860813,1779537044000,-500.0,0.00013698,2]
[422860814,1779537044000,-200.0,0.00013699,2]
[422860810,1779537044000,-500.0,0.00013698,2]
[422860811,1779537044000,-500.0,0.00013698,2]
[422860803,1779537044000,-500.0,0.00013698,2]
[422860812,1779537044000,-500.0,0.00013698,2]
[422860807,1779537044000,-500.0,0.00013698,2]
[422860806,1779537044000,-500.0,0.00013698,2]
[422860808,1779537044000,-500.0,0.00013698,2]
[422860805,1779537044000,-202.44477508,0.00013698,2]
[422860804,1779537044000,-500.0,0.00013698,2]
[422860809,1779537044000,-500.0,0.00013698,2]
[422860859,1779537045000,-300.0,0.00014739,2]
[422860864,1779537045000,-7230.2958112,0.0001474,2]
[422860866,1779537045000,-151.0,0.0001474,2]
[422860865,1779537045000,-152.744763,0.0001474,2]
[422860875,1779537045000,-2485.580296,0.0001474,2]
[422860867,1779537045000,-151.0,0.0001474,2]
[422860869,1779537045000,-151.0,0.0001474,2]
[422860870,1779537045000,-151.0,0.0001474,2]
[422860868,1779537045000,-151.0,0.0001474,2]
[422860873,1779537045000,-2485.580296,0.0001474,2]
[422860872,1779537045000,-151.0,0.0001474,2]